{"text_format":"3","workbook":"xlsx","n_sheets":1,"sheets":["KULURAPORTTI"],"not_rendered":{"defined_names":4},"read":"whole","date_system":"1900"}

{"sheet":"KULURAPORTTI","index":0,"n_rows":22,"n_cols":12,"rows_kept":22,"merged":[[1,2,1,3],[1,5,1,6],[3,2,3,3],[3,6,3,7],[3,10,3,11],[4,2,4,3],[4,6,4,7],[4,10,4,11],[20,2,20,4],[20,6,20,8],[21,2,21,4],[21,6,21,8]]}
[null,"KULURAPORTTI",{"$nulls":8},"Vain toimistokäyttöön"]
[null,"TARKOITUS:",null,null,"TILIOTENUMERO:",null,null,"MAKSUKAUSI","ALKAA:",{"$f":"IF(COUNTA(Kulutiedot[Päivämäärä])=0,\"\",MIN(Kulutiedot[Päivämäärä]))","v":""},"PÄÄTTYY:",{"$f":"IF(COUNTA(Kulutiedot[Päivämäärä])=0,\"\",MAX(Kulutiedot[Päivämäärä]))","v":""}]
[null,"TYÖNTEKIJÄN TIEDOT"]
[null,"NIMI",{"$nulls":3},"ASEMA",{"$nulls":3},"SOSIAALITURVATUNNUS"]
[null,"OSASTO",{"$nulls":3},"ESIMIES",{"$nulls":3},"TYÖNTEKIJÄTUNNUS"]
[]
[null,"Päivämäärä","Tili","Kuvaus","Hotelli","Matkakulut","Polttoainekulut","Ateriakulut","Puhelinkulut","Viihdekulut","Muut sekalaiset kulut","Summa"]
[{"$nulls":11},{"$f":"SUM(Kulutiedot[[#This Row],[Hotelli]:[Muut sekalaiset kulut]])","v":{"v":0,"d":"0.00 €"}}]
[{"$nulls":11},{"$f":"SUM(Kulutiedot[[#This Row],[Hotelli]:[Muut sekalaiset kulut]])","v":{"v":0,"d":"0.00 €"}}]
[{"$nulls":11},{"$f":"SUM(Kulutiedot[[#This Row],[Hotelli]:[Muut sekalaiset kulut]])","v":{"v":0,"d":"0.00 €"}}]
[{"$nulls":11},{"$f":"SUM(Kulutiedot[[#This Row],[Hotelli]:[Muut sekalaiset kulut]])","v":{"v":0,"d":"0.00 €"}}]
[{"$nulls":11},{"$f":"SUM(Kulutiedot[[#This Row],[Hotelli]:[Muut sekalaiset kulut]])","v":{"v":0,"d":"0.00 €"}}]
[{"$nulls":11},{"$f":"SUM(Kulutiedot[[#This Row],[Hotelli]:[Muut sekalaiset kulut]])","v":{"v":0,"d":"0.00 €"}}]
[{"$nulls":11},{"$f":"SUM(Kulutiedot[[#This Row],[Hotelli]:[Muut sekalaiset kulut]])","v":{"v":0,"d":"0.00 €"}}]
[{"$nulls":11},{"$f":"SUM(Kulutiedot[[#This Row],[Hotelli]:[Muut sekalaiset kulut]])","v":{"v":0,"d":"0.00 €"}}]
[{"$nulls":11},{"$f":"SUM(Kulutiedot[[#This Row],[Hotelli]:[Muut sekalaiset kulut]])","v":{"v":0,"d":"0.00 €"}}]
[{"$nulls":11},{"$f":"SUM(Kulutiedot[[#This Row],[Hotelli]:[Muut sekalaiset kulut]])","v":{"v":0,"d":"0.00 €"}}]
[{"$nulls":11},{"$f":"SUM(Kulutiedot[[#This Row],[Hotelli]:[Muut sekalaiset kulut]])","v":{"v":0,"d":"0.00 €"}}]
[null,"Summa",null,null,{"$f":"SUBTOTAL(109,Kulutiedot[Hotelli])","v":{"v":0,"d":"0.00 €"}},{"$f":"SUBTOTAL(109,Kulutiedot[Matkakulut])","v":{"v":0,"d":"0.00 €"}},{"$f":"SUBTOTAL(109,Kulutiedot[Polttoainekulut])","v":{"v":0,"d":"0.00 €"}},{"$f":"SUBTOTAL(109,Kulutiedot[Ateriakulut])","v":{"v":0,"d":"0.00 €"}},{"$f":"SUBTOTAL(109,Kulutiedot[Puhelinkulut])","v":{"v":0,"d":"0.00 €"}},{"$f":"SUBTOTAL(109,Kulutiedot[Viihdekulut])","v":{"v":0,"d":"0.00 €"}},{"$f":"SUBTOTAL(109,Kulutiedot[Muut sekalaiset kulut])","v":{"v":0,"d":"0.00 €"}},{"$f":"SUBTOTAL(109,Kulutiedot[Summa])","v":{"v":0,"d":"0.00 €"}}]
[{"$nulls":10},"VÄLISUMMA",{"$f":"Kulutiedot[[#Totals],[Summa]]","v":{"v":0,"d":"0.00 €"}}]
[null,"HYVÄKSYTTY:",{"$nulls":3},"HUOMAUTUKSET: ",{"$nulls":4},"ENNAKOT",{"v":0,"d":"0.00 €"}]
[{"$nulls":10},"SUMMA",{"$f":"Välisumma-Ennakot","v":{"v":0,"d":"0.00 €"}}]